bitfinex/quotes_SOLUSD_20230113
["timestamp","ask_amount","ask_price","bid_price","bid_amount"]
[1673647342716,96.71049716,18.386,18.373,124.72091995]
[1673647343031,90.40119716,18.385,18.373,124.72091995]
[1673647343348,46.10416737,18.384,18.373,124.72091995]
[1673647343979,44.29702979,18.389,18.374,20.0]
[1673647344211,44.29702979,18.389,18.373,124.72091995]
[1673647344390,33.05,18.39,18.373,124.72091995]
[1673647344603,168.9,18.403,18.373,124.72091995]
[1673647344604,33.23,18.4,18.374,20.0]
[1673647345037,33.23,18.4,18.375,20.0]
[1673647345972,29.9691928,18.399,18.375,20.0]
[1673647346389,6.3093,18.399,18.374,20.0]
[1673647346606,6.3093,18.398,18.374,20.0]
[1673647346810,29.9691928,18.399,18.374,20.0]
[1673647347015,76.76103404,18.4,18.374,20.0]
[1673647347219,73.50022684,18.399,18.374,20.0]
[1673647347436,33.23,18.4,18.374,20.0]
[1673647347656,33.23,18.4,18.375,3.05238763]
[1673647347855,20.0,18.398,18.373,124.72091995]
[1673647348062,6.3093,18.397,18.373,124.72091995]
[1673647348301,20.0,18.396,18.373,124.72091995]
[1673647348484,49.84033404,18.397,18.373,124.72091995]
[1673647348700,43.53103404,18.396,18.374,20.0]
[1673647349746,33.23,18.4,18.374,40.0]
[1673647350603,65.35083932,18.399,18.373,124.72091995]
[1673647350799,6.3093,18.398,18.373,124.72091995]
[1673647351010,115.19117336,18.398,18.373,124.72091995]
[1673647351236,108.88187336,18.397,18.373,124.72091995]
[1673647351430,23.3093,18.396,18.373,124.72091995]
[1673647351640,6.3093,18.395,18.373,124.72091995]
[1673647351844,37.0,18.394,18.373,124.72091995]
[1673647352055,86.84033404,18.394,18.373,144.72091995]
[1673647352283,43.53103404,18.393,18.373,144.72091995]
[1673647352500,37.0,18.392,18.373,144.72091995]
[1673647352807,145.88187336,18.392,18.373,144.72091995]
[1673647353128,65.35083932,18.391,18.373,144.72091995]
[1673647353327,17.0,18.39,18.373,144.72091995]
[1673647353654,115.67083932,18.39,18.373,144.72091995]
[1673647353838,35.38164652,18.389,18.373,144.72091995]
[1673647354053,29.9691928,18.389,18.373,144.72091995]
[1673647354267,29.9691928,18.388,18.373,124.72091995]
[1673647354906,33.32,18.39,18.371,20.0]
[1673647355125,20.0,18.392,18.371,394.16275985]
[1673647355736,33.23,18.4,18.372,20.0]
[1673647356048,33.23,18.4,18.373,20.0]
[1673647356272,33.23,18.4,18.374,23.04038553]
[1673647356464,33.23,18.4,18.376,3.04038553]
[1673647356673,33.23,18.4,18.375,20.0]
[1673647356909,33.23,18.4,18.376,3.04267466]
[1673647357120,33.23,18.4,18.375,20.0]
[1673647357311,29.9691928,18.399,18.375,20.0]
[1673647357736,99.86464723,18.398,18.375,20.0]
[1673647357955,6.3093,18.397,18.375,20.0]
[1673647358163,17.0,18.396,18.373,124.72091995]
[1673647358376,33.2,18.39,18.373,124.72091995]
[1673647358566,17.0,18.389,18.373,124.72091995]
[1673647358774,70.64182259,18.389,18.373,124.72091995]
[1673647358988,84.20366383,18.389,18.37,116.6632]
[1673647359216,73.50022684,18.388,18.373,124.72091995]
[1673647359641,29.9691928,18.387,18.373,124.72091995]
[1673647359849,17.0,18.386,18.373,124.72091995]
[1673647360170,43.53103404,18.386,18.373,124.72091995]
[1673647360482,33.2,18.39,18.373,124.72091995]
[1673647360483,33.23,18.4,18.373,124.72091995]
[1673647360689,20.0,18.398,18.373,124.72091995]
[1673647360892,20.0,18.398,18.374,20.0]
[1673647361108,69.84033404,18.398,18.374,20.0]
[1673647361420,62.99350599,18.397,18.374,20.0]
[1673647361632,6.3093,18.396,18.374,20.0]
[1673647361836,29.9691928,18.396,18.374,40.0]
[1673647362055,29.9691928,18.396,18.374,20.0]
[1673647362265,46.9691928,18.395,18.374,20.0]
[1673647362579,29.9691928,18.394,18.374,20.0]
[1673647362900,20.0,18.393,18.374,20.0]
[1673647363301,49.9691928,18.393,18.374,20.0]
[1673647363609,29.9691928,18.393,18.374,20.0]
[1673647363833,33.02431319,18.398,18.374,20.0]
[1673647364153,27.08104643,18.407,18.375,3.1978027]
[1673647364357,43.53103404,18.406,18.375,115.6632027]
[1673647364561,29.9691928,18.403,18.375,115.6632027]
[1673647364775,29.9691928,18.403,18.376,20.0]
[1673647364981,106.52454003,18.403,18.377,1.0]
[1673647365194,106.52454003,18.403,18.376,20.0]
[1673647365515,29.9691928,18.402,18.376,20.0]
[1673647365926,43.53103404,18.401,18.376,20.0]
[1673647366158,33.02431319,18.405,18.377,1.0]
[1673647366364,43.53103404,18.401,18.377,1.0]
[1673647366554,43.53103404,18.401,18.376,20.0]
[1673647367080,73.50022684,18.401,18.376,20.0]
[1673647367291,72.00022684,18.401,18.376,20.0]
[1673647367498,43.53103404,18.4,18.376,20.0]
[1673647367933,73.50022684,18.4,18.376,20.0]
[1673647368349,43.40103404,18.399,18.376,20.0]
[1673647368763,73.37022684,18.399,18.376,20.0]
[1673647369185,43.40103404,18.398,18.376,20.0]
[1673647369711,29.9691928,18.401,18.376,20.0]
[1673647370341,27.08104643,18.409,18.376,20.0]
[1673647370554,29.9691928,18.406,18.376,20.0]
[1673647370883,20.0,18.405,18.376,20.0]
[1673647371192,46.9691928,18.404,18.376,20.0]
[1673647371382,20.0,18.403,18.376,20.0]
[1673647372437,29.9691928,18.402,18.376,20.0]
[1673647372655,20.0,18.401,18.376,20.0]
[1673647373087,29.9691928,18.4,18.376,20.0]
[1673647373291,62.99350599,18.4,18.376,20.0]
[1673647373609,33.02431319,18.4,18.376,20.0]
[1673647373935,69.88406849,18.399,18.376,20.0]
[1673647374243,29.9691928,18.398,18.376,20.0]
[1673647374452,69.88406849,18.398,18.376,20.0]
[1673647374660,39.91487569,18.397,18.376,20.0]
[1673647374990,29.9691928,18.397,18.376,20.0]
[1673647375516,40.67262979,18.4,18.377,20.0]
[1673647375814,29.9691928,18.415,18.379,4.88799875]
[1673647376027,29.9691928,18.415,18.379,24.88799875]
[1673647376225,29.9691928,18.405,18.379,24.88799875]
[1673647376438,29.9691928,18.405,18.379,20.0]
[1673647376651,29.9691928,18.405,18.378,20.0]
[1673647376977,27.08104643,18.418,18.381,171.96676688]
[1673647377196,0.00800998,18.411,18.39,33.37]
[1673647377380,29.9691928,18.422,18.391,32.09739184]
[1673647377590,29.9691928,18.422,18.392,20.0]
[1673647377799,27.08104643,18.432,18.393,25.82342184]
[1673647378005,29.9691928,18.428,18.4,33.16]
[1673647378223,27.08104643,18.436,18.401,25.82342184]
[1673647378450,6.3093,18.435,18.402,20.0]
[1673647378644,29.9691928,18.431,18.403,5.82342184]
[1673647379179,29.9691928,18.431,18.404,20.0]
[1673647379497,29.9691928,18.431,18.405,5.82342184]
[1673647379903,29.9691928,18.431,18.403,5.82342184]
[1673647380116,6.3093,18.43,18.403,5.82342184]
[1673647380317,33.53647665,18.43,18.405,5.82342184]
[1673647380525,29.9691928,18.429,18.403,5.82342184]
[1673647380739,29.9691928,18.429,18.405,5.82342184]
[1673647380966,6.3093,18.428,18.401,5.82342184]
[1673647381369,46.9691928,18.427,18.401,5.82342184]
[1673647381799,29.9691928,18.426,18.401,5.82342184]
[1673647382132,17.0,18.425,18.401,5.82342184]
[1673647382533,49.9691928,18.424,18.401,5.82342184]
[1673647382742,6.3093,18.428,18.401,25.82342184]
[1673647383184,36.2784928,18.428,18.401,25.82342184]
[1673647383581,29.9691928,18.428,18.401,25.82342184]
[1673647383793,33.24,18.44,18.401,74.22797842]
[1673647384016,26.3093,18.439,18.402,20.0]
[1673647384235,29.9691928,18.438,18.403,5.82342184]
[1673647384428,29.9691928,18.438,18.403,54.22797842]
[1673647384644,29.9691928,18.438,18.404,20.0]
[1673647384858,36.2784928,18.438,18.405,5.82342184]
[1673647385178,56.43597406,18.449,18.405,5.82342184]
[1673647385179,29.9691928,18.441,18.41,33.37]
[1673647385372,29.9691928,18.441,18.412,20.0]
[1673647385583,33.32,18.45,18.412,26.26681]
[1673647385795,49.9691928,18.447,18.413,20.0]
[1673647386021,29.9691928,18.447,18.413,20.0]
[1673647386211,29.9691928,18.446,18.413,20.0]
[1673647386418,27.08104643,18.456,18.414,20.0]
[1673647386633,29.9691928,18.452,18.414,20.0]
[1673647386847,36.2784928,18.452,18.415,20.0]
[1673647387058,33.08,18.46,18.42,33.37]
[1673647387284,40.29649645,18.457,18.421,20.0]
[1673647387476,6.3093,18.456,18.422,20.0]
[1673647387688,6.3093,18.456,18.423,20.0]
[1673647387901,65.78589761,18.455,18.423,20.0]
[1673647388122,6.3093,18.454,18.422,20.0]
[1673647388334,17.0,18.453,18.417,389.56454318]
[1673647388655,33.31,18.45,18.417,389.56454318]
[1673647388848,59.84577665,18.452,18.417,389.56454318]
[1673647388849,33.16,18.44,18.417,389.56454318]
[1673647389068,23.3093,18.439,18.417,389.56454318]
[1673647389384,23.3093,18.439,18.414,405.37240478]
[1673647389385,33.37,18.43,18.414,405.37240478]
[1673647389705,49.84800426,18.429,18.414,405.37240478]
[1673647389911,102.65703972,18.429,18.414,405.37240478]
[1673647390110,52.80903546,18.428,18.414,405.37240478]
[1673647390312,33.37,18.45,18.414,405.37240478]
[1673647390523,29.9691928,18.436,18.415,20.0]
[1673647391264,46.36426532,18.441,18.416,20.0]
[1673647391583,29.9691928,18.44,18.417,20.0]
[1673647391994,46.36426532,18.439,18.417,20.0]
[1673647392211,17.0,18.438,18.417,20.0]
[1673647392420,29.9691928,18.438,18.417,20.0]
[1673647392644,29.9691928,18.437,18.417,20.0]
[1673647393265,33.08,18.46,18.417,20.0]
[1673647393589,29.9691928,18.454,18.418,3.755021]
[1673647393794,20.0,18.453,18.421,3.755021]
[1673647394112,36.2784928,18.454,18.42,33.37]
[1673647394309,36.2784928,18.454,18.422,20.0]
[1673647394531,29.9691928,18.454,18.423,23.37974417]
[1673647394739,33.08,18.46,18.423,23.37974417]
[1673647394740,29.9691928,18.453,18.423,23.37974417]
[1673647394952,36.2784928,18.453,18.424,112.3049]
[1673647395155,36.2784928,18.453,18.426,20.0]
[1673647395375,36.2784928,18.453,18.427,3.37974417]
[1673647395376,29.9691928,18.452,18.427,3.37974417]
[1673647395797,20.0,18.451,18.427,3.37974417]
[1673647396111,29.9691928,18.45,18.427,3.37974417]
[1673647396510,20.0,18.451,18.427,3.37974417]
[1673647396734,20.0,18.459,18.427,3.37974417]
[1673647396946,29.9691928,18.456,18.427,3.37974417]
[1673647397277,29.9691928,18.456,18.425,40.0]
[1673647397278,20.0,18.455,18.425,20.0]
[1673647397594,36.2784928,18.454,18.427,332.62833978]
[1673647397792,20.0,18.453,18.427,332.62833978]
[1673647398008,66.9691928,18.453,18.427,332.62833978]
[1673647398214,29.9691928,18.452,18.427,332.62833978]
[1673647398431,20.0,18.45,18.427,332.62833978]
[1673647398634,33.32,18.44,18.427,332.62833978]
[1673647399168,29.9691928,18.439,18.427,332.62833978]
[1673647399376,23.3093,18.438,18.427,332.62833978]
[1673647399695,29.9691928,18.437,18.427,332.62833978]
[1673647399902,23.3093,18.436,18.427,332.62833978]
[1673647400097,26.3093,18.435,18.427,332.62833978]
[1673647400310,20.0,18.433,18.427,328.80483978]
[1673647400538,23.3093,18.434,18.427,328.80483978]
[1673647400539,26.3093,18.432,18.427,328.80483978]
[1673647400854,135.06062293,18.432,18.427,328.80483978]
[1673647401047,120.60533742,18.431,18.427,328.80483978]
[1673647401257,85.01954488,18.431,18.427,328.80483978]
[1673647401464,114.98873768,18.43,18.427,328.20483978]
[1673647401694,17.0,18.429,18.427,328.20483978]
[1673647401880,121.29803768,18.429,18.427,228.20483978]
[1673647402219,53.37,18.45,18.427,228.20483978]
[1673647402533,38.19776729,18.447,18.427,228.20483978]
[1673647402723,6.3093,18.446,18.427,228.20483978]
[1673647402928,36.2784928,18.446,18.427,228.20483978]
[1673647403362,49.9691928,18.445,18.427,228.20483978]
[1673647403575,6.3093,18.444,18.427,228.20483978]
[1673647403777,36.2784928,18.444,18.427,228.20483978]
[1673647403982,29.9691928,18.443,18.427,228.20483978]
[1673647404539,168.9,18.439,18.427,228.20483978]
[1673647404731,26.3093,18.438,18.427,228.20483978]
[1673647404947,175.2093,18.437,18.427,228.20483978]
[1673647405155,26.3093,18.436,18.427,228.20483978]
[1673647405365,17.0,18.435,18.427,228.20483978]
[1673647405685,33.32,18.45,18.428,20.0]
[1673647406115,35.58579254,18.444,18.428,20.0]
[1673647407583,20.0,18.471,18.428,248.20483976]
[1673647407584,33.69,18.46,18.428,248.20483976]
[1673647407799,6.3093,18.459,18.429,20.0]
[1673647408013,6.3093,18.459,18.429,44.87693339]
[1673647408014,41.89509254,18.459,18.429,44.87693339]
[1673647408224,35.58579254,18.458,18.431,20.0]
[1673647408540,29.9691928,18.466,18.432,24.87693339]
[1673647408728,41.89509254,18.465,18.433,155.1887]
[1673647408942,6.3093,18.464,18.434,2.5]
[1673647409148,6.3093,18.464,18.434,27.37693339]
[1673647409361,35.58579254,18.463,18.435,44.87693339]
[1673647409572,35.58579254,18.463,18.436,2.5]
[1673647409892,20.0,18.462,18.436,27.37693339]
[1673647410097,33.37,18.47,18.438,2.5]
[1673647410305,33.37,18.47,18.44,2.5]
[1673647410512,33.37,18.47,18.442,2.5]
[1673647410735,33.37,18.47,18.442,22.5]
[1673647410959,33.37,18.47,18.444,20.0]
[1673647411269,65.55498534,18.469,18.441,20.0]
[1673647411478,29.9691928,18.469,18.442,20.0]
[1673647411692,29.9691928,18.468,18.442,20.0]
[1673647412091,76.56633759,18.47,18.442,20.0]
[1673647412298,29.9691928,18.469,18.441,20.0]
[1673647412522,6.3093,18.468,18.441,175.46077476]
[1673647412720,20.0,18.467,18.441,155.46077476]
[1673647413049,35.58579254,18.467,18.442,20.0]
[1673647413245,35.58579254,18.466,18.442,20.0]
[1673647413456,6.3093,18.468,18.442,20.0]
[1673647413691,41.89509254,18.466,18.443,20.0]
[1673647414109,71.86428534,18.466,18.443,20.0]
[1673647414296,23.3093,18.465,18.443,20.0]
[1673647414509,23.3093,18.465,18.432,40.5263063]
[1673647414510,33.37,18.46,18.442,155.46077476]
[1673647414720,39.6793,18.46,18.442,155.46077476]
[1673647415036,65.55498534,18.459,18.442,155.46077476]
[1673647415242,26.3093,18.458,18.442,155.46077476]
[1673647415449,33.32,18.45,18.442,155.46077476]
[1673647415659,39.6293,18.45,18.442,155.46077476]
[1673647415888,65.55498534,18.449,18.442,155.46077476]
[1673647416090,153.25839022,18.449,18.442,155.46077476]
[1673647416418,81.39410488,18.448,18.442,155.46077476]
[1673647416628,33.37,18.46,18.442,155.46077476]
[1673647417055,29.9691928,18.459,18.442,155.46077476]
[1673647417368,65.55498534,18.459,18.442,155.46077476]
[1673647417576,35.58579254,18.458,18.442,155.46077476]
[1673647417785,29.9691928,18.465,18.442,155.46077476]
[1673647417988,29.9691928,18.459,18.442,155.46077476]
[1673647418409,33.37,18.46,18.442,155.46077476]
[1673647418620,65.55498534,18.459,18.442,155.46077476]
[1673647418946,71.86428534,18.459,18.442,155.46077476]
[1673647419160,41.89509254,18.459,18.442,155.46077476]
[1673647419464,59.9383856,18.458,18.442,155.46077476]
[1673647419674,17.0,18.457,18.442,155.46077476]
[1673647419887,58.89509254,18.457,18.442,155.46077476]
[1673647420097,65.55498534,18.456,18.442,155.46077476]
[1673647420500,35.58579254,18.455,18.442,155.46077476]
[1673647420713,63.3391928,18.46,18.442,155.46077476]
[1673647421146,33.37,18.46,18.443,20.0]
[1673647421773,98.92498534,18.46,18.443,20.0]
[1673647421991,98.92498534,18.46,18.442,155.46077476]
[1673647422198,33.22,18.45,18.442,155.46077476]
[1673647422602,65.901652,18.449,18.442,155.46077476]
[1673647422812,33.22,18.45,18.442,155.46077476]
[1673647423046,45.9675542,18.451,18.442,155.46077476]
[1673647423233,35.9324592,18.453,18.442,155.46077476]
[1673647423444,29.9691928,18.454,18.442,155.46077476]
[1673647423665,34.98432587,18.459,18.442,155.46077476]
[1673647424093,33.22,18.46,18.443,20.0]
[1673647424601,29.9691928,18.459,18.443,20.0]
[1673647424817,66.60018534,18.459,18.442,155.46077476]
[1673647425355,66.60018534,18.458,18.442,155.46077476]
[1673647425768,66.60018534,18.457,18.442,155.46077476]
[1673647425966,66.60018534,18.457,18.442,155.18422476]
[1673647426177,29.9691928,18.456,18.442,155.18422476]
[1673647427864,66.60018534,18.456,18.442,155.18422476]
[1673647428068,36.63099254,18.456,18.442,155.18422476]
[1673647428400,29.9691928,18.463,18.442,155.18422476]
[1673647428595,45.57148753,18.455,18.443,20.0]
[1673647428805,33.16,18.47,18.443,20.0]
[1673647429030,29.9691928,18.468,18.444,20.0]
[1673647429244,6.3093,18.467,18.444,20.0]
[1673647429556,29.9691928,18.466,18.444,20.0]
[1673647429747,29.9691928,18.466,18.445,20.0]
[1673647431245,17.0,18.465,18.445,20.0]
[1673647431548,29.9691928,18.464,18.445,20.0]
[1673647431741,17.0,18.463,18.445,20.0]
[1673647431957,29.9691928,18.464,18.445,20.0]
[1673647432604,17.0,18.465,18.445,20.0]
[1673647433216,17.0,18.465,18.442,155.18422476]
[1673647433217,56.2784928,18.464,18.442,155.18422476]
[1673647433423,20.0,18.462,18.442,155.18422476]
[1673647433633,23.3093,18.463,18.442,155.18422476]
[1673647433634,20.0,18.461,18.442,155.18422476]
[1673647434264,60.24104643,18.47,18.442,155.18422476]
[1673647434265,20.0,18.462,18.442,155.18422476]
[1673647434473,29.9691928,18.467,18.442,155.18422476]
[1673647434692,45.57148753,18.469,18.443,20.0]
[1673647434905,29.9691928,18.473,18.444,3.28406406]
[1673647435432,36.2784928,18.473,18.444,20.0]
[1673647435751,6.3093,18.472,18.444,20.0]
[1673647436180,49.9691928,18.471,18.444,20.0]
[1673647436579,20.0,18.471,18.444,20.0]
[1673647436792,29.9691928,18.474,18.444,20.0]
[1673647436995,27.08104643,18.488,18.446,20.0]
[1673647437223,29.9691928,18.479,18.447,25.16954988]
[1673647437748,29.9691928,18.479,18.449,5.16954988]
[1673647437968,29.9691928,18.479,18.451,25.16954988]
[1673647438154,29.9691928,18.479,18.452,20.0]
[1673647438361,29.9691928,18.479,18.453,1.0]
[1673647438892,6.3093,18.478,18.453,1.0]
[1673647439225,29.9691928,18.477,18.453,1.0]
[1673647439430,29.9691928,18.477,18.452,20.0]
[1673647439431,17.0,18.476,18.452,20.0]
[1673647439744,29.9691928,18.476,18.452,20.0]
[1673647441111,29.9691928,18.476,18.451,20.0]
[1673647441313,29.9691928,18.476,18.452,20.0]
[1673647442576,75.54068033,18.476,18.452,20.0]
[1673647442898,75.54068033,18.476,18.451,20.0]
[1673647442899,26.3093,18.475,18.45,224.6017]
[1673647443307,59.9383856,18.474,18.45,224.6017]
[1673647443519,20.0,18.473,18.451,20.0]
[1673647443723,17.0,18.472,18.451,20.0]
[1673647443935,20.0,18.471,18.451,20.0]
[1673647444152,49.9691928,18.471,18.451,20.0]
[1673647444786,49.9691928,18.471,18.45,224.6017]
[1673647444787,29.9691928,18.47,18.45,224.6017]
[1673647445009,115.21998033,18.47,18.45,224.6017]
[1673647445213,45.57148753,18.469,18.45,224.6017]
[1673647445424,23.3093,18.468,18.45,224.6017]
[1673647445729,53.2784928,18.468,18.45,224.6017]
[1673647445946,46.9691928,18.468,18.45,224.6017]
[1673647446140,20.0,18.471,18.45,224.6017]
[1673647446352,45.57148753,18.467,18.45,224.6017]
[1673647446562,29.9691928,18.472,18.45,224.6017]
[1673647446906,33.58,18.48,18.452,20.0]
[1673647447079,6.3093,18.479,18.452,20.0]
[1673647447495,45.57148753,18.478,18.452,20.0]
[1673647447717,51.88078753,18.478,18.451,20.0]
[1673647447918,175.2093,18.477,18.451,20.0]
[1673647448140,6.3093,18.476,18.451,20.0]
[1673647448356,81.84998033,18.476,18.451,20.0]
[1673647448555,46.9691928,18.475,18.451,20.0]
[1673647448766,29.9691928,18.475,18.452,20.0]
[1673647449092,36.2784928,18.474,18.453,20.0]
[1673647449303,29.9691928,18.474,18.453,20.0]
[1673647449725,69.45928033,18.474,18.453,20.0]
[1673647449926,39.49008753,18.474,18.453,20.0]
[1673647450346,29.9691928,18.477,18.453,20.0]
[1673647450659,6.3093,18.477,18.453,20.0]
[1673647450875,6.3093,18.476,18.453,20.0]
[1673647451081,6.3093,18.476,18.45,224.6017]
[1673647451292,168.9,18.474,18.449,127.70937224]
[1673647451491,26.3093,18.473,18.449,127.70937224]
[1673647451702,6.3093,18.472,18.449,127.70937224]
[1673647451912,6.3093,18.472,18.443,20.0]
[1673647451913,37.0,18.471,18.445,150.56560059]
[1673647452144,6.3093,18.47,18.445,150.56560059]
[1673647452355,17.0,18.469,18.445,150.56560059]
[1673647452548,33.37,18.46,18.445,150.56560059]
[1673647452755,6.3093,18.459,18.445,150.56560059]
[1673647452988,17.0,18.458,18.445,150.56560059]
[1673647453184,6.3093,18.457,18.445,150.56560059]
[1673647453491,63.29466878,18.456,18.445,150.56560059]
[1673647453824,92.70193343,18.455,18.445,150.56560059]
[1673647454012,43.3093,18.454,18.442,155.18422473]
[1673647454224,33.2,18.45,18.442,155.18422473]
[1673647454457,17.0,18.449,18.442,155.18422473]
[1673647454665,103.39263343,18.449,18.442,155.18422473]
[1673647454874,46.74148753,18.448,18.442,155.18422473]
[1673647455295,57.09796465,18.449,18.442,155.18422473]
[1673647455507,40.09796465,18.449,18.442,155.18422473]
[1673647456536,6.3093,18.453,18.442,155.18422473]
[1673647456537,0.0093,18.453,18.442,155.18422473]
[1673647456756,33.37,18.47,18.443,40.0]
[1673647457407,34.74543132,18.469,18.443,40.0]
[1673647457721,33.37,18.47,18.443,40.0]
[1673647457902,34.74543132,18.469,18.443,40.0]
[1673647458116,203.64543132,18.469,18.443,40.0]
[1673647458322,203.64543132,18.469,18.443,20.0]
[1673647458323,20.0,18.467,18.443,20.0]
[1673647458541,6.3093,18.466,18.443,20.0]
[1673647458770,188.9,18.465,18.442,155.18422473]
[1673647458981,33.32,18.46,18.442,155.18422473]
[1673647459170,37.0,18.459,18.442,155.18422473]
[1673647459378,168.9,18.458,18.442,155.18422473]
[1673647459588,17.0,18.457,18.442,155.18422473]
[1673647459822,20.0,18.456,18.442,155.18422473]
[1673647460034,17.0,18.455,18.442,155.18422473]
[1673647460340,20.0,18.454,18.442,152.68422473]
[1673647460548,78.67232123,18.454,18.442,152.68422473]
[1673647460754,168.9,18.469,18.442,152.68422473]
[1673647460968,120.98089313,18.453,18.442,152.68422473]
[1673647461372,108.71266506,18.453,18.442,152.68422473]
[1673647461586,78.74347226,18.452,18.442,152.68422473]
[1673647462012,29.9691928,18.457,18.442,152.68422473]
[1673647462221,17.0,18.456,18.442,152.68422473]
[1673647462868,64.71462412,18.455,18.442,152.68422473]
[1673647463064,33.37,18.45,18.442,152.68422473]
[1673647463488,53.73876465,18.449,18.442,152.68422473]
[1673647463696,33.37,18.46,18.442,152.68422473]
[1673647464104,36.73876465,18.459,18.442,152.68422473]
[1673647464525,80.73680559,18.459,18.442,152.68422473]
[1673647464764,110.70599839,18.459,18.442,152.68422473]
[1673647464964,36.73876465,18.458,18.442,152.68422473]
[1673647465275,29.9691928,18.457,18.442,152.68422473]
[1673647465484,66.70795745,18.458,18.442,152.68422473]
[1673647465698,36.73876465,18.456,18.442,152.68422473]
[1673647465895,17.0,18.455,18.442,152.68422473]
[1673647466110,168.9,18.454,18.442,152.68422473]
[1673647466314,33.37,18.45,18.442,152.68422473]
[1673647466759,17.0,18.449,18.442,152.68422473]
[1673647466939,296.60599839,18.449,18.442,152.68422473]
[1673647467153,279.60599839,18.448,18.442,152.68422473]
[1673647467486,97.73680559,18.447,18.442,152.68422473]
[1673647467699,296.60599839,18.447,18.442,152.68422473]
[1673647468048,110.70599839,18.446,18.442,152.68422473]
[1673647468205,17.0,18.445,18.442,152.68422473]
[1673647468416,122.32162646,18.445,18.442,141.68422473]
[1673647468622,80.73680559,18.444,18.442,141.68422473]
[1673647468835,122.32162646,18.444,18.41,114.1715]
[1673647469063,79.99910382,18.44,18.414,32.2177587]
[1673647469383,142.21329312,18.439,18.414,32.2177587]
[1673647469579,172.18248592,18.439,18.414,32.2177587]
[1673647469796,122.21329312,18.438,18.432,6.3e-06]
[1673647470003,152.18248592,18.438,18.432,6.3e-06]
[1673647470218,152.18248592,18.437,18.428,10.217765]
[1673647470426,26.3093,18.436,18.428,10.217765]
[1673647470630,175.12915259,18.436,18.428,10.217765]
[1673647470839,155.12915259,18.435,18.428,10.217765]
[1673647471049,20.0,18.434,18.428,10.217765]
[1673647471378,6.3093,18.433,18.428,10.217765]
[1673647471571,20.0,18.432,18.428,10.217765]
[1673647471811,20.0,18.432,18.428,6.5e-05]
[1673647471812,145.15995979,18.432,18.428,6.5e-05]
[1673647472017,113.99111165,18.431,18.428,6.5e-05]
[1673647472556,130.99111165,18.43,18.428,6.5e-05]
[1673647472963,113.99111165,18.429,18.428,6.5e-05]
[1673647473173,130.99111165,18.429,18.428,6.5e-05]
[1673647473390,113.99111165,18.429,18.428,6.5e-05]
[1673647473709,36.73876465,18.429,18.428,6.5e-05]
[1673647473912,66.70795745,18.429,18.428,6.5e-05]
[1673647474450,119.19111165,18.429,18.428,6.5e-05]
[1673647474646,136.19111165,18.429,18.428,6.5e-05]
[1673647475070,176.67116271,18.429,18.414,32.2177587]
[1673647475268,36.73876465,18.428,18.414,32.2177587]
[1673647475712,29.9691928,18.427,18.414,32.2177587]
[1673647476128,36.73876465,18.426,18.414,32.2177587]
[1673647476337,20.0,18.425,18.414,32.2177587]
[1673647476560,20.0,18.424,18.414,32.2177587]
[1673647476748,2.159,18.419,18.414,21.2177587]
[1673647476962,33.05,18.42,18.414,21.2177587]
[1673647477283,66.70795745,18.418,18.414,21.2177587]
[1673647477705,174.98860283,18.417,18.414,21.2177587]
[1673647477915,138.24983818,18.417,18.414,21.2177587]
[1673647478241,138.24983818,18.417,18.4,125.3272616]
[1673647478242,21.2177587,18.409,18.4,4.8078616]
[1673647478420,168.9,18.414,18.4,4.8078616]
[1673647478421,6.3093,18.408,18.4,4.8078616]
[1673647478635,20.0,18.406,18.39,51.744065]
[1673647478841,33.16,18.4,18.39,51.744065]
[1673647479261,29.9691928,18.407,18.39,51.744065]
[1673647479495,30.0,18.415,18.391,20.0]
[1673647479681,42.92750399,18.411,18.391,133.4883]
[1673647480331,42.92750399,18.411,18.391,113.4883]
[1673647481064,20.0,18.414,18.391,113.4883]
[1673647481253,42.92750399,18.416,18.391,113.4883]